[Event "*** Titled Tuesday Blitz"]
[Site "Chess.com"]
[Date "2020.05.12"]
[Round "9"]
[White "bazar-wokzal"]
[Black "Ginzburg_Yakov"]
[Result "0-1"]
[WhiteElo "2529"]
[BlackElo "2406"]
[TimeControl "180+1"]
[EndTime "11:44:10 PDT"]
[Termination "Ginzburg_Yakov won by resignation"]

1. e4 {[%clk 0:03:00.9]} 1... c5 {[%clk 0:02:58.5]} 2. c3 {[%clk 0:03:00.8]}
2... d5 {[%clk 0:02:53.3]} 3. exd5 {[%clk 0:03:00.7]} 3... Qxd5 {[%clk
0:02:54.1]} 4. d4 {[%clk 0:03:01.3]} 4... Nf6 {[%clk 0:02:54.1]} 5. Nf3 {[%clk
0:03:00.7]} 5... Nc6 {[%clk 0:02:53.9]} 6. Be3 {[%clk 0:02:59.4]} 6... cxd4
{[%clk 0:02:48.2]} 7. cxd4 {[%clk 0:02:59.4]} 7... e6 {[%clk 0:02:31.4]} 8. a3
{[%clk 0:02:58.4]} 8... Be7 {[%clk 0:02:30.5]} 9. Nc3 {[%clk 0:02:58.4]} 9...
Qd8 {[%clk 0:02:30]} 10. Qc2 {[%clk 0:02:57.2]} 10... O-O {[%clk 0:02:29.6]} 11.
Bd3 {[%clk 0:02:57.1]} 11... Bd7 {[%clk 0:02:22.3]} 12. O-O {[%clk 0:02:55.7]}
12... Rc8 {[%clk 0:02:22.1]} 13. Rad1 {[%clk 0:02:52.8]} 13... Qa5 {[%clk
0:02:12.8]} 14. Rfe1 {[%clk 0:02:45.4]} 14... Qh5 {[%clk 0:02:11.3]} 15. Qd2
{[%clk 0:02:39.5]} 15... Rfd8 {[%clk 0:02:10.4]} 16. Ne2 {[%clk 0:02:38.3]}
16... Be8 {[%clk 0:02:07.9]} 17. Nf4 {[%clk 0:02:26.6]} 17... Qa5 {[%clk
0:02:07.2]} 18. Qe2 {[%clk 0:02:26.1]} 18... Nd5 {[%clk 0:01:56.9]} 19. Bb1
{[%clk 0:02:18.6]} 19... g6 {[%clk 0:01:40.5]} 20. Nxd5 {[%clk 0:02:13.4]} 20...
Qxd5 {[%clk 0:01:36.9]} 21. b4 {[%clk 0:02:06]} 21... Bf6 {[%clk 0:01:24.5]} 22.
Ba2 {[%clk 0:02:05]} 22... Qh5 {[%clk 0:01:24.2]} 23. Rd2 {[%clk 0:01:53]} 23...
Ne7 {[%clk 0:01:23.5]} 24. Bf4 {[%clk 0:01:40.7]} 24... Bb5 {[%clk 0:01:20.4]}
25. Qe3 {[%clk 0:01:21.2]} 25... Nf5 {[%clk 0:01:19.7]} 26. Qe4 {[%clk
0:01:11.7]} 26... Bc6 {[%clk 0:01:03.3]} 27. d5 {[%clk 0:01:11.2]} 27... exd5
{[%clk 0:01:02.4]} 28. Bxd5 {[%clk 0:01:08.9]} 28... Re8 {[%clk 0:01:02.2]} 29.
Qc4 {[%clk 0:00:53.9]} 29... Bxd5 {[%clk 0:00:35.3]} 30. Rxe8+ {[%clk
0:00:39.6]} 30... Rxe8 {[%clk 0:00:35.3]} 31. Qxd5 {[%clk 0:00:40.2]} 31... Qg4
{[%clk 0:00:34.4]} 32. Bg3 {[%clk 0:00:32.1]} 32... h5 {[%clk 0:00:31.3]} 33. h3
{[%clk 0:00:30.2]} 33... Qe4 {[%clk 0:00:30.4]} 34. Qxe4 {[%clk 0:00:28.8]}
34... Rxe4 {[%clk 0:00:30.7]} 35. Rd7 {[%clk 0:00:28.5]} 35... Re7 {[%clk
0:00:26.7]} 36. Rd8+ {[%clk 0:00:21.6]} 36... Kg7 {[%clk 0:00:25.9]} 37. Ra8
{[%clk 0:00:20.9]} 37... Nxg3 {[%clk 0:00:23.7]} 38. fxg3 {[%clk 0:00:20.4]}
38... Re3 {[%clk 0:00:21.6]} 39. a4 {[%clk 0:00:14.9]} 39... Ra3 {[%clk
0:00:21]} 40. a5 {[%clk 0:00:14.4]} 40... Rb3 {[%clk 0:00:19.7]} 41. Kh2 {[%clk
0:00:13.3]} 41... Rxb4 {[%clk 0:00:17.4]} 42. Rxa7 {[%clk 0:00:12.2]} 42... Rb1
{[%clk 0:00:16.5]} 43. g4 {[%clk 0:00:11.9]} 43... h4 {[%clk 0:00:16.3]} 44. g5
{[%clk 0:00:10.6]} 44... Be7 {[%clk 0:00:13.3]} 45. Nxh4 {[%clk 0:00:08.9]}
45... Bxg5 {[%clk 0:00:11.3]} 46. Nf3 {[%clk 0:00:07.9]} 46... Bf4+ {[%clk
0:00:11.6]} 47. g3 {[%clk 0:00:08.1]} 47... Rb2+ {[%clk 0:00:12.1]} 48. Kg1
{[%clk 0:00:08.4]} 48... Bxg3 {[%clk 0:00:13]} 49. a6 {[%clk 0:00:08.6]} 49...
Bf2+ {[%clk 0:00:12.9]} 50. Kf1 {[%clk 0:00:07.2]} 50... Bxa7 {[%clk 0:00:13.5]}
0-1

[Event "*** Titled Tuesday Blitz"]
[Site "Chess.com"]
[Date "2020.05.12"]
[Round "9"]
[White "Shankovskyi"]
[Black "Kaliopa"]
[Result "1-0"]
[WhiteElo "2530"]
[BlackElo "2119"]
[TimeControl "180+1"]
[EndTime "11:44:12 PDT"]
[Termination "Shankovskyi won by resignation"]

1. e4 {[%clk 0:03:00.9]} 1... c5 {[%clk 0:02:57]} 2. Nf3 {[%clk 0:03:01.2]} 2...
Nc6 {[%clk 0:02:57.5]} 3. Bb5 {[%clk 0:03:00.6]} 3... g6 {[%clk 0:02:56.5]} 4.
Bxc6 {[%clk 0:03:00]} 4... dxc6 {[%clk 0:02:57.4]} 5. d3 {[%clk 0:02:59.8]} 5...
Bg7 {[%clk 0:02:57.9]} 6. Nc3 {[%clk 0:03:00.7]} 6... Nf6 {[%clk 0:02:58.2]} 7.
Be3 {[%clk 0:03:01.6]} 7... Nd7 {[%clk 0:02:58.5]} 8. Qd2 {[%clk 0:03:02.2]}
8... h6 {[%clk 0:02:57.5]} 9. h4 {[%clk 0:03:02]} 9... e5 {[%clk 0:02:56.9]} 10.
h5 {[%clk 0:03:01.5]} 10... g5 {[%clk 0:02:55.9]} 11. Ne2 {[%clk 0:03:01.9]}
11... b6 {[%clk 0:02:51.5]} 12. Ng3 {[%clk 0:03:01.9]} 12... Nf8 {[%clk
0:02:49.2]} 13. a4 {[%clk 0:02:58.5]} 13... Ne6 {[%clk 0:02:45.9]} 14. Nf5
{[%clk 0:02:58.1]} 14... O-O {[%clk 0:02:45.2]} 15. Nxg7 {[%clk 0:02:54.2]}
15... Kxg7 {[%clk 0:02:44.3]} 16. Nxe5 {[%clk 0:02:54.6]} 16... f5 {[%clk
0:02:25.3]} 17. exf5 {[%clk 0:02:46.9]} 17... Rxf5 {[%clk 0:02:25.6]} 18. Qc3
{[%clk 0:02:47.4]} 18... Nd4 {[%clk 0:02:18.3]} 19. Nf3 {[%clk 0:02:47.1]} 19...
Kh7 {[%clk 0:01:57.4]} 20. Nxd4 {[%clk 0:02:44.4]} 20... cxd4 {[%clk 0:01:55.7]}
21. Qxd4 {[%clk 0:02:40.9]} 21... Qxd4 {[%clk 0:01:53.8]} 22. Bxd4 {[%clk
0:02:41.8]} 22... c5 {[%clk 0:01:54]} 23. Be3 {[%clk 0:02:41.2]} 23... Bb7
{[%clk 0:01:54.5]} 24. f3 {[%clk 0:02:20.3]} 24... Re8 {[%clk 0:01:49.8]} 25.
Kd2 {[%clk 0:02:20.7]} 25... c4 {[%clk 0:01:32.6]} 26. dxc4 {[%clk 0:02:16.1]}
26... Ba6 {[%clk 0:01:11.5]} 27. b3 {[%clk 0:02:14]} 27... Rf7 {[%clk
0:01:09.5]} 28. Rae1 {[%clk 0:02:04.5]} 28... Rd7+ {[%clk 0:01:07.7]} 29. Kc3
{[%clk 0:02:04.6]} 29... Rde7 {[%clk 0:01:05.9]} 30. Bf2 {[%clk 0:01:57.7]}
30... Re2 {[%clk 0:01:04.1]} 31. Rxe2 {[%clk 0:01:48.4]} 31... Rxe2 {[%clk
0:01:05]} 32. Rf1 {[%clk 0:01:48.8]} 32... Bc8 {[%clk 0:01:00.4]} 33. Kd3 {[%clk
0:01:47.3]} 33... Re8 {[%clk 0:01:00.5]} 34. Re1 {[%clk 0:01:38.4]} 34... Bf5+
{[%clk 0:00:57.3]} 35. Kc3 {[%clk 0:01:38.7]} 35... Rxe1 {[%clk 0:00:55.7]} 36.
Bxe1 {[%clk 0:01:39.1]} 36... g4 {[%clk 0:00:56.6]} 37. f4 {[%clk 0:01:29.1]}
37... Be6 {[%clk 0:00:47.9]} 38. Bf2 {[%clk 0:01:28]} 38... Bf7 {[%clk
0:00:46.7]} 39. a5 {[%clk 0:01:27.5]} 39... bxa5 {[%clk 0:00:45]} 40. Bxa7
{[%clk 0:01:27.6]} 40... Bxh5 {[%clk 0:00:44.9]} 41. Bb6 {[%clk 0:01:27.6]}
41... Be8 {[%clk 0:00:43.9]} 42. Bxa5 {[%clk 0:01:26.2]} 42... h5 {[%clk
0:00:44.4]} 43. Bd8 {[%clk 0:01:23.1]} 43... Kg6 {[%clk 0:00:43.8]} 44. g3
{[%clk 0:01:23.3]} 44... Kf5 {[%clk 0:00:43.6]} 45. Kd4 {[%clk 0:01:23.2]} 45...
Ke6 {[%clk 0:00:44]} 46. b4 {[%clk 0:01:22.1]} 46... Kd7 {[%clk 0:00:44.1]} 47.
Bh4 {[%clk 0:01:20]} 47... Bg6 {[%clk 0:00:44.3]} 48. c3 {[%clk 0:01:20.1]}
48... Bb1 {[%clk 0:00:43.6]} 49. b5 {[%clk 0:01:20]} 49... Bc2 {[%clk
0:00:41.9]} 50. Kc5 {[%clk 0:01:11.4]} 50... Bd3 {[%clk 0:00:39.4]} 51. Bg5
{[%clk 0:01:08.7]} 51... Kc7 {[%clk 0:00:36.7]} 52. Bf6 {[%clk 0:01:07.9]} 52...
Kd7 {[%clk 0:00:35.5]} 53. Kd5 {[%clk 0:01:07.9]} 53... Bf1 {[%clk 0:00:33.5]}
54. c5 {[%clk 0:01:05.6]} 54... Bxb5 {[%clk 0:00:33.3]} 55. Ke5 {[%clk
0:01:04.3]} 55... Ke8 {[%clk 0:00:29.1]} 56. Kf5 {[%clk 0:01:00.2]} 56... Kf8
{[%clk 0:00:25.3]} 57. Kg5 {[%clk 0:00:57]} 57... Be8 {[%clk 0:00:25.2]} 58. c6
{[%clk 0:00:57.3]} 58... Bxc6 {[%clk 0:00:24.4]} 59. Kxh5 {[%clk 0:00:57.4]}
59... Bf3 {[%clk 0:00:25.3]} 60. c4 {[%clk 0:00:56.9]} 60... Kf7 {[%clk
0:00:26.2]} 61. Be5 {[%clk 0:00:55.2]} 61... Be2 {[%clk 0:00:23.7]} 62. c5
{[%clk 0:00:54.5]} 62... Bf3 {[%clk 0:00:24.6]} 63. Kg5 {[%clk 0:00:54.2]} 63...
Ke6 {[%clk 0:00:22.9]} 64. Bd6 {[%clk 0:00:50.5]} 64... Kf7 {[%clk 0:00:15.1]}
65. Bb8 {[%clk 0:00:48]} 65... Ke6 {[%clk 0:00:14.8]} 66. Bd6 {[%clk 0:00:47.7]}
66... Kf7 {[%clk 0:00:15.5]} 67. f5 {[%clk 0:00:48.3]} 67... Ke8 {[%clk
0:00:13.4]} 68. Kf6 {[%clk 0:00:45.3]} 68... Kd7 {[%clk 0:00:12.8]} 69. Kg7
{[%clk 0:00:42.3]} 69... Bd5 {[%clk 0:00:09.2]} 70. f6 {[%clk 0:00:41.8]} 70...
Ke8 {[%clk 0:00:09.5]} 71. c6 {[%clk 0:00:41]} 71... Kd8 {[%clk 0:00:09.9]} 72.
f7 {[%clk 0:00:40.2]} 72... Bxf7 {[%clk 0:00:09.2]} 73. Kxf7 {[%clk 0:00:41.1]}
1-0

[Event "*** Titled Tuesday Blitz"]
[Site "Chess.com"]
[Date "2020.05.12"]
[Round "9"]
[White "Revnov"]
[Black "Megagigahiper3345"]
[Result "0-1"]
[WhiteElo "2671"]
[BlackElo "2534"]
[TimeControl "180+1"]
[EndTime "11:44:18 PDT"]
[Termination "Megagigahiper3345 won by checkmate"]

1. b3 {[%clk 0:03:00.9]} 1... e5 {[%clk 0:02:57]} 2. Bb2 {[%clk 0:03:01.2]} 2...
Nc6 {[%clk 0:02:57.7]} 3. e3 {[%clk 0:03:01.5]} 3... g6 {[%clk 0:02:58.3]} 4. d4
{[%clk 0:03:00.8]} 4... Bg7 {[%clk 0:02:59]} 5. d5 {[%clk 0:03:00.4]} 5... Nce7
{[%clk 0:02:58.8]} 6. d6 {[%clk 0:03:00.7]} 6... cxd6 {[%clk 0:02:49.3]} 7. Nc3
{[%clk 0:03:01.2]} 7... d5 {[%clk 0:02:38]} 8. Nxd5 {[%clk 0:02:58.2]} 8... Nxd5
{[%clk 0:02:37.8]} 9. Qxd5 {[%clk 0:02:57.8]} 9... Ne7 {[%clk 0:02:37.7]} 10.
Qd6 {[%clk 0:02:48]} 10... Qb6 {[%clk 0:02:37.2]} 11. Qxb6 {[%clk 0:02:44.1]}
11... axb6 {[%clk 0:02:36.9]} 12. Nf3 {[%clk 0:02:43.9]} 12... f6 {[%clk
0:02:19.7]} 13. Bb5 {[%clk 0:02:39]} 13... Kf7 {[%clk 0:02:17.2]} 14. a4 {[%clk
0:02:36.9]} 14... d5 {[%clk 0:02:17]} 15. O-O-O {[%clk 0:02:33.4]} 15... Be6
{[%clk 0:02:16.8]} 16. Kb1 {[%clk 0:02:33.6]} 16... Rac8 {[%clk 0:02:01.1]} 17.
Ne1 {[%clk 0:02:33]} 17... Rhd8 {[%clk 0:01:54.7]} 18. Nd3 {[%clk 0:02:32.9]}
18... Nc6 {[%clk 0:01:47.8]} 19. f4 {[%clk 0:02:23.2]} 19... e4 {[%clk
0:01:43.7]} 20. Nc1 {[%clk 0:02:19.6]} 20... Nb4 {[%clk 0:01:36.1]} 21. Rd2
{[%clk 0:02:15]} 21... Bf8 {[%clk 0:01:33.5]} 22. Ne2 {[%clk 0:02:14.2]} 22...
Nc6 {[%clk 0:01:25]} 23. Nd4 {[%clk 0:02:11.5]} 23... Nxd4 {[%clk 0:01:24.7]}
24. Bxd4 {[%clk 0:02:11.9]} 24... Bb4 {[%clk 0:01:23.8]} 25. Rdd1 {[%clk
0:02:11.3]} 25... Rd6 {[%clk 0:01:17.9]} 26. h3 {[%clk 0:02:10.2]} 26... h5
{[%clk 0:01:15.7]} 27. Rhg1 {[%clk 0:02:06.7]} 27... h4 {[%clk 0:01:14]} 28. Kb2
{[%clk 0:02:06.2]} 28... Bc5 {[%clk 0:01:06]} 29. c3 {[%clk 0:02:05.3]} 29...
Bd7 {[%clk 0:01:04.9]} 30. Be2 {[%clk 0:02:03.2]} 30... Rdc6 {[%clk 0:00:55]}
31. Bxc5 {[%clk 0:01:45.2]} 31... Rxc5 {[%clk 0:00:55.9]} 32. Rc1 {[%clk
0:01:44.3]} 32... b5 {[%clk 0:00:53.6]} 33. a5 {[%clk 0:01:42.2]} 33... Ra8
{[%clk 0:00:36.5]} 34. Rgd1 {[%clk 0:01:41.8]} 34... Ke6 {[%clk 0:00:33.8]} 35.
Rd4 {[%clk 0:01:38.8]} 35... Rc7 {[%clk 0:00:25.1]} 36. b4 {[%clk 0:01:38.5]}
36... Bc6 {[%clk 0:00:24.2]} 37. Bd1 {[%clk 0:01:29.7]} 37... Rg7 {[%clk
0:00:19.2]} 38. Bb3 {[%clk 0:01:20.7]} 38... g5 {[%clk 0:00:19.2]} 39. Rxe4+
{[%clk 0:01:19.2]} 39... Kd6 {[%clk 0:00:16.8]} 40. Rd4 {[%clk 0:01:15.8]} 40...
gxf4 {[%clk 0:00:17.3]} 41. Rxf4 {[%clk 0:01:12.2]} 41... Rxg2+ {[%clk
0:00:17.4]} 42. Rc2 {[%clk 0:01:10.5]} 42... Rg3 {[%clk 0:00:16.4]} 43. Rxh4
{[%clk 0:00:51.5]} 43... Rxe3 {[%clk 0:00:16.4]} 44. Rf2 {[%clk 0:00:51]} 44...
Ke5 {[%clk 0:00:16.6]} 45. Rh5+ {[%clk 0:00:49.8]} 45... Ke6 {[%clk 0:00:17.1]}
46. Bc2 {[%clk 0:00:46.5]} 46... Rf8 {[%clk 0:00:14.5]} 47. Bf5+ {[%clk
0:00:43.5]} 47... Kd6 {[%clk 0:00:14.1]} 48. Rh7 {[%clk 0:00:41.2]} 48... d4
{[%clk 0:00:10.8]} 49. cxd4 {[%clk 0:00:39.5]} 49... Kd5 {[%clk 0:00:11]} 50.
Rh4 {[%clk 0:00:32.6]} 50... Kc4 {[%clk 0:00:11]} 51. Be6+ {[%clk 0:00:28.1]}
51... Rxe6 {[%clk 0:00:06.2]} 52. Rf5 {[%clk 0:00:24.9]} 52... Bd5 {[%clk
0:00:05.9]} 53. Rhh5 {[%clk 0:00:22]} 53... Re2+ {[%clk 0:00:05.3]} 54. Kc1
{[%clk 0:00:21.7]} 54... Rd8 {[%clk 0:00:05.3]} 55. Rxf6 {[%clk 0:00:19.9]}
55... Re4 {[%clk 0:00:05]} 56. Rb6 {[%clk 0:00:17.7]} 56... Rxd4 {[%clk
0:00:05.4]} 57. Rg5 {[%clk 0:00:14]} 57... Kxb4 {[%clk 0:00:05.5]} 58. a6 {[%clk
0:00:13.1]} 58... bxa6 {[%clk 0:00:03.8]} 59. Rxa6 {[%clk 0:00:13.4]} 59... Bc4
{[%clk 0:00:04.1]} 60. Rg1 {[%clk 0:00:11]} 60... Rd3 {[%clk 0:00:04.6]} 61. Rh6
{[%clk 0:00:10.2]} 61... Rc3+ {[%clk 0:00:05.2]} 62. Kb1 {[%clk 0:00:10.5]}
62... Rd2 {[%clk 0:00:05.7]} 63. Rhg6 {[%clk 0:00:09.4]} 63... Bd3+ {[%clk
0:00:06.1]} 64. Ka1 {[%clk 0:00:08.6]} 64... Ra3# {[%clk 0:00:06.8]} 0-1

[Event "*** Titled Tuesday Blitz"]
[Site "Chess.com"]
[Date "2020.05.12"]
[Round "9"]
[White "aa175"]
[Black "AnthonyWirig"]
[Result "0-1"]
[WhiteElo "2396"]
[BlackElo "2574"]
[TimeControl "180+1"]
[EndTime "11:44:18 PDT"]
[Termination "AnthonyWirig won on time"]

1. d4 {[%clk 0:03:00.9]} 1... Nf6 {[%clk 0:02:59.8]} 2. Nf3 {[%clk 0:03:00.4]}
2... c5 {[%clk 0:02:59.7]} 3. d5 {[%clk 0:02:58.7]} 3... g6 {[%clk 0:02:59.6]}
4. Nc3 {[%clk 0:02:57]} 4... Bg7 {[%clk 0:03:00]} 5. e4 {[%clk 0:02:56.9]} 5...
O-O {[%clk 0:03:00.4]} 6. e5 {[%clk 0:02:56.3]} 6... Ng4 {[%clk 0:02:55.8]} 7.
Bf4 {[%clk 0:02:54.9]} 7... d6 {[%clk 0:02:55.3]} 8. exd6 {[%clk 0:02:50.8]}
8... exd6 {[%clk 0:02:54.9]} 9. h3 {[%clk 0:02:50.7]} 9... Re8+ {[%clk
0:02:54.6]} 10. Be2 {[%clk 0:02:50.4]} 10... Ne5 {[%clk 0:02:54.2]} 11. O-O
{[%clk 0:02:48.7]} 11... a6 {[%clk 0:02:50.5]} 12. a4 {[%clk 0:02:48]} 12...
Nbd7 {[%clk 0:02:50.6]} 13. Re1 {[%clk 0:02:39.9]} 13... Nxf3+ {[%clk
0:02:50.1]} 14. Bxf3 {[%clk 0:02:40.8]} 14... Ne5 {[%clk 0:02:50.8]} 15. Be2
{[%clk 0:02:39]} 15... Bf5 {[%clk 0:02:49.1]} 16. a5 {[%clk 0:02:33.3]} 16...
Qc7 {[%clk 0:02:43.2]} 17. Qd2 {[%clk 0:02:25.9]} 17... h5 {[%clk 0:02:34.2]}
18. Na4 {[%clk 0:02:25.6]} 18... Re7 {[%clk 0:02:29.6]} 19. Nb6 {[%clk
0:02:19.2]} 19... Rae8 {[%clk 0:02:29.4]} 20. c4 {[%clk 0:02:11.2]} 20... Nd7
{[%clk 0:02:24.5]} 21. Na4 {[%clk 0:02:03.4]} 21... Bd4 {[%clk 0:02:21.4]} 22.
Ra3 {[%clk 0:01:51.1]} 22... Ne5 {[%clk 0:02:18.8]} 23. Bxe5 {[%clk 0:01:51]}
23... Rxe5 {[%clk 0:02:17.5]} 24. Nc3 {[%clk 0:01:46]} 24... Qe7 {[%clk
0:02:14]} 25. Kf1 {[%clk 0:01:42.1]} 25... Qf6 {[%clk 0:02:02.4]} 26. Nd1 {[%clk
0:01:40.3]} 26... Be4 {[%clk 0:01:45.2]} 27. b4 {[%clk 0:01:26.6]} 27... Rf5
{[%clk 0:01:29]} 28. Bf3 {[%clk 0:01:20.6]} 28... Rfe5 {[%clk 0:01:12]} 29. Bxe4
{[%clk 0:01:15.3]} 29... Rxe4 {[%clk 0:01:12.9]} 30. Rxe4 {[%clk 0:01:16.2]}
30... Rxe4 {[%clk 0:01:12.8]} 31. Rf3 {[%clk 0:01:17.1]} 31... Qe5 {[%clk
0:01:10.2]} 32. bxc5 {[%clk 0:01:18]} 32... Bxc5 {[%clk 0:01:04.8]} 33. Ne3
{[%clk 0:01:15.4]} 33... Qa1+ {[%clk 0:00:52.1]} 34. Qe1 {[%clk 0:01:14.3]}
34... Qxe1+ {[%clk 0:00:42]} 35. Kxe1 {[%clk 0:01:14.6]} 35... Bb4+ {[%clk
0:00:39.4]} 36. Ke2 {[%clk 0:01:13.5]} 36... Bxa5 {[%clk 0:00:40]} 37. Kd3
{[%clk 0:01:13.4]} 37... Re7 {[%clk 0:00:38.4]} 38. Nc2 {[%clk 0:01:13.7]} 38...
Bb6 {[%clk 0:00:38.3]} 39. Nd4 {[%clk 0:01:09]} 39... Bc5 {[%clk 0:00:38]} 40.
g4 {[%clk 0:01:05.3]} 40... hxg4 {[%clk 0:00:37.3]} 41. hxg4 {[%clk 0:01:06.2]}
41... Kg7 {[%clk 0:00:36.2]} 42. Nb3 {[%clk 0:01:02.3]} 42... b5 {[%clk
0:00:33.9]} 43. Nxc5 {[%clk 0:01:00.3]} 43... dxc5 {[%clk 0:00:33.8]} 44. g5
{[%clk 0:00:50.3]} 44... Re5 {[%clk 0:00:31.6]} 45. d6 {[%clk 0:00:46.2]} 45...
Re6 {[%clk 0:00:27.8]} 46. cxb5 {[%clk 0:00:33.7]} 46... axb5 {[%clk 0:00:26.1]}
47. d7 {[%clk 0:00:16.8]} 47... Rd6+ {[%clk 0:00:25.6]} 48. Ke4 {[%clk
0:00:17.7]} 48... Rxd7 {[%clk 0:00:26.3]} 49. Rb3 {[%clk 0:00:17.2]} 49... b4
{[%clk 0:00:20.3]} 50. f4 {[%clk 0:00:16.3]} 50... Rd1 {[%clk 0:00:17]} 51. Rb2
{[%clk 0:00:13.2]} 51... Rc1 {[%clk 0:00:14.3]} 52. Kd5 {[%clk 0:00:11.9]} 52...
Rc3 {[%clk 0:00:14.2]} 53. Rb1 {[%clk 0:00:09.3]} 53... b3 {[%clk 0:00:14.5]}
54. Ke4 {[%clk 0:00:04.1]} 54... c4 {[%clk 0:00:13.7]} 55. Kd4 {[%clk 0:00:05]}
55... Rc2 {[%clk 0:00:13.8]} 56. f5 {[%clk 0:00:04.4]} 56... gxf5 {[%clk
0:00:13.2]} 57. Rf1 {[%clk 0:00:02.3]} 57... b2 {[%clk 0:00:13.1]} 58. Ke5
{[%clk 0:00:02]} 58... Rc1 {[%clk 0:00:13.2]} 59. Rf4 {[%clk 0:00:02.7]} 59...
b1=Q {[%clk 0:00:12.8]} 60. Rd4 {[%clk 0:00:03.6]} 60... Re1+ {[%clk 0:00:12.4]}
61. Kd5 {[%clk 0:00:04.5]} 61... Qb5+ {[%clk 0:00:12.2]} 62. Kd6 {[%clk
0:00:04.5]} 62... Re6+ {[%clk 0:00:12.8]} 63. Kc7 {[%clk 0:00:04.5]} 63... Qc6+
{[%clk 0:00:12.7]} 64. Kb8 {[%clk 0:00:02.9]} 64... Re8+ {[%clk 0:00:13.4]} 0-1

[Event "*** Titled Tuesday Blitz"]
[Site "Chess.com"]
[Date "2020.05.12"]
[Round "9"]
[White "lupta_robin"]
[Black "White_Ghost"]
[Result "1-0"]
[WhiteElo "2581"]
[BlackElo "2440"]
[TimeControl "180+1"]
[EndTime "11:44:20 PDT"]
[Termination "lupta_robin won by resignation"]

1. e4 {[%clk 0:02:53.4]} 1... e5 {[%clk 0:02:55.9]} 2. Nf3 {[%clk 0:02:53.1]}
2... Nc6 {[%clk 0:02:54.7]} 3. d4 {[%clk 0:02:53.3]} 3... exd4 {[%clk
0:02:54.6]} 4. Nxd4 {[%clk 0:02:52.5]} 4... Nf6 {[%clk 0:02:54.7]} 5. Nxc6
{[%clk 0:02:50.3]} 5... bxc6 {[%clk 0:02:55.6]} 6. e5 {[%clk 0:02:50.2]} 6...
Qe7 {[%clk 0:02:56.1]} 7. Qe2 {[%clk 0:02:50.5]} 7... Nd5 {[%clk 0:02:56.8]} 8.
c4 {[%clk 0:02:50.9]} 8... Ba6 {[%clk 0:02:57.1]} 9. Nd2 {[%clk 0:02:51]} 9...
g6 {[%clk 0:02:49.5]} 10. Nf3 {[%clk 0:02:51]} 10... Bg7 {[%clk 0:02:36.5]} 11.
Bg5 {[%clk 0:02:51]} 11... Qb4+ {[%clk 0:02:29.7]} 12. Qd2 {[%clk 0:02:47.6]}
12... Qxd2+ {[%clk 0:02:18.2]} 13. Bxd2 {[%clk 0:02:48.5]} 13... Nb6 {[%clk
0:02:13.4]} 14. b3 {[%clk 0:02:48.8]} 14... O-O {[%clk 0:02:13.2]} 15. O-O-O
{[%clk 0:02:47.3]} 15... Rfe8 {[%clk 0:02:11.9]} 16. Bf4 {[%clk 0:02:20.6]}
16... h6 {[%clk 0:02:01.4]} 17. h4 {[%clk 0:02:19.9]} 17... Bb7 {[%clk
0:01:57.3]} 18. a4 {[%clk 0:02:07.9]} 18... a5 {[%clk 0:01:54.2]} 19. Bd3 {[%clk
0:01:57.2]} 19... c5 {[%clk 0:01:52.3]} 20. Rhe1 {[%clk 0:01:57.6]} 20... Bc6
{[%clk 0:01:51.3]} 21. Be4 {[%clk 0:01:51.8]} 21... Bxe4 {[%clk 0:01:45.3]} 22.
Rxe4 {[%clk 0:01:52.7]} 22... Re7 {[%clk 0:01:35.9]} 23. Rde1 {[%clk 0:01:32.5]}
23... Nc8 {[%clk 0:01:30.5]} 24. Be3 {[%clk 0:01:26.8]} 24... d6 {[%clk
0:01:15.2]} 25. Bf4 {[%clk 0:01:23.3]} 25... dxe5 {[%clk 0:01:08.2]} 26. Bxe5
{[%clk 0:01:17.6]} 26... Nd6 {[%clk 0:00:32.2]} 27. Bxd6 {[%clk 0:00:58.4]}
27... Rxe4 {[%clk 0:00:33.1]} 28. Rxe4 {[%clk 0:00:58.7]} 28... cxd6 {[%clk
0:00:34]} 29. Re7 {[%clk 0:00:56.8]} 29... Rb8 {[%clk 0:00:27]} 30. Kc2 {[%clk
0:00:56.3]} 30... Bf6 {[%clk 0:00:27.1]} 31. Rd7 {[%clk 0:00:49.8]} 31... Rb6
{[%clk 0:00:16.9]} 32. Ra7 {[%clk 0:00:44.2]} 32... Rb8 {[%clk 0:00:16.6]} 33.
Rxa5 {[%clk 0:00:39.2]} 33... Re8 {[%clk 0:00:16.5]} 34. Kd3 {[%clk 0:00:39.4]}
34... g5 {[%clk 0:00:16.9]} 35. hxg5 {[%clk 0:00:37.7]} 35... hxg5 {[%clk
0:00:17.8]} 36. g4 {[%clk 0:00:38.2]} 36... Kg7 {[%clk 0:00:18.2]} 37. Ra6
{[%clk 0:00:36.5]} 37... Rb8 {[%clk 0:00:18.4]} 38. Nd2 {[%clk 0:00:34.7]} 38...
Be5 {[%clk 0:00:15.1]} 39. Ra5 {[%clk 0:00:30.3]} 39... Rh8 {[%clk 0:00:09.9]}
40. Rb5 {[%clk 0:00:24.5]} 40... Rh3+ {[%clk 0:00:09.3]} 41. Kc2 {[%clk
0:00:20.4]} 41... Rh2 {[%clk 0:00:08.2]} 42. Ne4 {[%clk 0:00:20.2]} 42... Kg6
{[%clk 0:00:06.8]} 43. a5 {[%clk 0:00:20.2]} 43... f5 {[%clk 0:00:06.8]} 44.
gxf5+ {[%clk 0:00:20.1]} 44... Kxf5 {[%clk 0:00:07.7]} 45. Kd3 {[%clk
0:00:20.5]} 45... Rh3+ {[%clk 0:00:07.2]} 46. Ng3+ {[%clk 0:00:20.6]} 46... Bxg3
{[%clk 0:00:07.3]} 47. fxg3 {[%clk 0:00:20.9]} 47... Rxg3+ {[%clk 0:00:08.2]}
48. Ke2 {[%clk 0:00:20.9]} 48... Rh3 {[%clk 0:00:08.6]} 49. a6 {[%clk
0:00:20.5]} 49... Rh8 {[%clk 0:00:05.8]} 50. Rb7 {[%clk 0:00:19.4]} 50... Ra8
{[%clk 0:00:05.3]} 51. a7 {[%clk 0:00:19.8]} 51... Kf4 {[%clk 0:00:04.1]} 52.
Rf7+ {[%clk 0:00:18.4]} 52... Kg4 {[%clk 0:00:04.4]} 53. Ke3 {[%clk 0:00:18.2]}
53... Kg3 {[%clk 0:00:04.7]} 54. Ke4 {[%clk 0:00:17.7]} 54... g4 {[%clk
0:00:05]} 55. Kd5 {[%clk 0:00:18.2]} 55... Kh2 {[%clk 0:00:05.4]} 56. Kxd6
{[%clk 0:00:18.7]} 56... g3 {[%clk 0:00:05.6]} 57. Rh7+ {[%clk 0:00:16.5]} 57...
Kg1 {[%clk 0:00:05.3]} 58. Kxc5 {[%clk 0:00:16.9]} 58... g2 {[%clk 0:00:05.7]}
59. Kb6 {[%clk 0:00:17]} 59... Kf1 {[%clk 0:00:06.2]} 60. Rf7+ {[%clk
0:00:17.2]} 60... Ke1 {[%clk 0:00:05.9]} 61. Rg7 {[%clk 0:00:17.6]} 61... Kf1
{[%clk 0:00:06.2]} 62. Kb7 {[%clk 0:00:16.3]} 62... Rf8 {[%clk 0:00:04.9]} 63.
a8=Q {[%clk 0:00:16.3]} 63... Rxa8 {[%clk 0:00:03]} 64. Kxa8 {[%clk 0:00:16.3]}
64... g1=Q {[%clk 0:00:03.3]} 65. Rxg1+ {[%clk 0:00:16.1]} 65... Kxg1 {[%clk
0:00:04.2]} 66. c5 {[%clk 0:00:16.3]} 1-0